[Event "Titled Tuesday Blitz May 10 Late 2022"]
[White "talman67"]
[Black "Vestby-Ellingsen, Mads"]
[BlackFideId "1520857"]
[WhiteElo "2352"]
[BlackElo "2232"]
[Result "1-0"]
[Round "02"]
[TimeControl "180+1"]
[Date "2022.05.11"]
[WhiteClock "0:00:05"]
[BlackClock "0:00:03"]

1. e4 {[%clk 0:03:00]}  Nf6 {[%clk 0:02:59]} 2. e5 {[%clk 0:03:00]}  Nd5 {[%clk 0:02:58]} 3. d4 {[%clk 0:03:01]}  d6 {[%clk 0:02:59]} 4. Nf3 {[%clk 0:03:02]}  Bg4 {[%clk 0:02:55]} 5. Be2 {[%clk 0:02:58]}  e6 {[%clk 0:02:56]} 6. c4 {[%clk 0:02:55]}  Nb6 {[%clk 0:02:56]} 7. exd6 {[%clk 0:02:40]}  cxd6 {[%clk 0:02:55]} 8. Nc3 {[%clk 0:02:41]}  Be7 {[%clk 0:02:55]} 9. h3 {[%clk 0:02:41]}  Bh5 {[%clk 0:02:55]} 10. g4 {[%clk 0:02:32]}  Bg6 {[%clk 0:02:55]} 11. d5 {[%clk 0:02:31]}  e5 {[%clk 0:02:48]} 12. h4 {[%clk 0:02:31]}  h5 {[%clk 0:02:47]} 13. g5 {[%clk 0:02:31]}  N8d7 {[%clk 0:02:44]} 14. Bd3 {[%clk 0:02:30]}  Bxd3 {[%clk 0:02:43]} 15. Qxd3 {[%clk 0:02:31]}  Nc5 {[%clk 0:02:23]} 16. Qe2 {[%clk 0:02:31]}  Qd7 {[%clk 0:02:22]} 17. Be3 {[%clk 0:02:28]}  Rc8 {[%clk 0:02:16]} 18. b3 {[%clk 0:02:24]}  Qf5 {[%clk 0:02:13]} 19. Bxc5 {[%clk 0:02:23]}  Rxc5 {[%clk 0:02:11]} 20. Ne4 {[%clk 0:02:15]}  Rc8 {[%clk 0:02:11]} 21. O-O-O {[%clk 0:02:05]}  a5 {[%clk 0:01:56]} 22. a4 {[%clk 0:02:05]}  Nd7 {[%clk 0:01:51]} 23. Kb2 {[%clk 0:02:04]}  Nc5 {[%clk 0:01:40]} 24. Nxc5 {[%clk 0:02:02]}  Rxc5 {[%clk 0:01:41]} 25. Nd2 {[%clk 0:02:03]}  Rc8 {[%clk 0:01:34]} 26. Ne4 {[%clk 0:02:02]}  g6 {[%clk 0:01:28]} 27. c5 {[%clk 0:01:56]}  O-O {[%clk 0:01:15]} 28. cxd6 {[%clk 0:01:51]}  Bd8 {[%clk 0:01:15]} 29. Rc1 {[%clk 0:01:50]}  Bb6 {[%clk 0:01:14]} 30. Rxc8 {[%clk 0:01:38]}  Rxc8 {[%clk 0:01:15]} 31. Rc1 {[%clk 0:01:38]}  Rxc1 {[%clk 0:01:02]} 32. Kxc1 {[%clk 0:01:39]}  Qf4+ {[%clk 0:01:01]} 33. Kc2 {[%clk 0:01:30]}  Qxh4 {[%clk 0:01:00]} 34. f3 {[%clk 0:00:44]}  Qh3 {[%clk 0:00:55]} 35. Qb5 {[%clk 0:00:41]}  Qc8+ {[%clk 0:00:47]} 36. Kd3 {[%clk 0:00:39]}  Qd8 {[%clk 0:00:42]} 37. d7 {[%clk 0:00:24]}  Kg7 {[%clk 0:00:33]} 38. d6 {[%clk 0:00:24]}  Bd4 {[%clk 0:00:23]} 39. f4 {[%clk 0:00:25]}  h4 {[%clk 0:00:20]} 40. fxe5 {[%clk 0:00:25]}  h3 {[%clk 0:00:21]} 41. Kxd4 {[%clk 0:00:23]}  h2 {[%clk 0:00:21]} 42. e6 {[%clk 0:00:07]}  h1=Q {[%clk 0:00:12]} 43. Qe5+ {[%clk 0:00:07]}  f6 {[%clk 0:00:11]} 44. gxf6+ {[%clk 0:00:06]}  Kh7 {[%clk 0:00:10]} 45. Ng5+ {[%clk 0:00:06]}  Kh6 {[%clk 0:00:06]} 46. Nf7+ {[%clk 0:00:06]}  Kh7 {[%clk 0:00:06]} 47. Nxd8 {[%clk 0:00:06]}  Qa1+ {[%clk 0:00:06]} 48. Kd5 {[%clk 0:00:06]}  Qd1+ {[%clk 0:00:05]} 49. Kc5 {[%clk 0:00:06]}  Qc2+ {[%clk 0:00:04]} 50. Kb6 {[%clk 0:00:06]}  Qxb3+ {[%clk 0:00:04]} 51. Ka7 {[%clk 0:00:06]}  Qe3+ {[%clk 0:00:03]} 52. Qxe3 {[%clk 0:00:05]} 1-0


[Site "https://www.chess.com"]

[Event "Titled Tuesday Blitz May 10 Late 2022"]
[White "Adla, Diego"]
[Black "Daggupati, Balaji"]
[WhiteFideId "100072"]
[BlackFideId "2090759"]
[WhiteElo "2377"]
[BlackElo "2636"]
[Result "0-1"]
[Round "03"]
[TimeControl "180+1"]
[Date "2022.05.11"]
[WhiteClock "0:00:15"]
[BlackClock "0:00:20"]

1. e4 {[%clk 0:03:00]}  c5 {[%clk 0:03:00]} 2. Nf3 {[%clk 0:03:00]}  e6 {[%clk 0:03:01]} 3. d4 {[%clk 0:02:59]}  cxd4 {[%clk 0:03:01]} 4. Nxd4 {[%clk 0:02:59]}  Nf6 {[%clk 0:03:02]} 5. Nc3 {[%clk 0:02:59]}  Nc6 {[%clk 0:03:03]} 6. Ndb5 {[%clk 0:02:58]}  d6 {[%clk 0:03:02]} 7. Bf4 {[%clk 0:02:57]}  e5 {[%clk 0:03:03]} 8. Bg5 {[%clk 0:02:57]}  a6 {[%clk 0:03:04]} 9. Na3 {[%clk 0:02:56]}  b5 {[%clk 0:03:04]} 10. Nd5 {[%clk 0:02:55]}  Be7 {[%clk 0:03:04]} 11. Bxf6 {[%clk 0:02:55]}  Bxf6 {[%clk 0:03:05]} 12. c3 {[%clk 0:02:55]}  Bg5 {[%clk 0:03:05]} 13. Nc2 {[%clk 0:02:55]}  O-O {[%clk 0:03:06]} 14. h4 {[%clk 0:02:55]}  Bh6 {[%clk 0:03:05]} 15. g3 {[%clk 0:02:56]}  Rb8 {[%clk 0:02:58]} 16. Bh3 {[%clk 0:02:55]}  Bxh3 {[%clk 0:02:54]} 17. Rxh3 {[%clk 0:02:54]}  a5 {[%clk 0:02:53]} 18. a3 {[%clk 0:02:51]}  Kh8 {[%clk 0:02:41]} 19. Kf1 {[%clk 0:02:48]}  Qd7 {[%clk 0:02:32]} 20. Kg2 {[%clk 0:02:47]}  f5 {[%clk 0:02:31]} 21. Qd3 {[%clk 0:02:13]}  f4 {[%clk 0:02:18]} 22. f3 {[%clk 0:02:13]}  fxg3 {[%clk 0:02:17]} 23. Rxg3 {[%clk 0:02:13]}  Bf4 {[%clk 0:02:17]} 24. Rg4 {[%clk 0:02:13]}  Qe6 {[%clk 0:01:39]} 25. h5 {[%clk 0:02:09]}  Bh6 {[%clk 0:01:33]} 26. Rh1 {[%clk 0:02:06]}  Rf7 {[%clk 0:01:31]} 27. Rh3 {[%clk 0:02:05]}  Rbf8 {[%clk 0:01:31]} 28. Rgg3 {[%clk 0:01:52]}  Bf4 {[%clk 0:01:21]} 29. Rg4 {[%clk 0:01:50]}  Bc1 {[%clk 0:01:21]} 30. b4 {[%clk 0:01:43]}  axb4 {[%clk 0:01:16]} 31. axb4 {[%clk 0:01:32]}  Bh6 {[%clk 0:00:28]} 32. Rgg3 {[%clk 0:01:27]}  Bf4 {[%clk 0:00:27]} 33. Rg4 {[%clk 0:01:25]}  Bh6 {[%clk 0:00:27]} 34. Rgg3 {[%clk 0:01:08]}  Rb7 {[%clk 0:00:27]} 35. Rh1 {[%clk 0:00:47]}  Ra8 {[%clk 0:00:27]} 36. Ra1 {[%clk 0:00:42]}  Rxa1 {[%clk 0:00:27]} 37. Nxa1 {[%clk 0:00:42]}  Qf7 {[%clk 0:00:25]} 38. Rh3 {[%clk 0:00:22]}  Ra7 {[%clk 0:00:26]} 39. Nb3 {[%clk 0:00:22]}  Ra2+ {[%clk 0:00:25]} 40. Kh1 {[%clk 0:00:16]}  Qa7 {[%clk 0:00:22]} 41. Rg3 {[%clk 0:00:15]}  Qf2 {[%clk 0:00:20]} 0-1


[Site "https://www.chess.com"]

[Event "Titled Tuesday Blitz May 10 Late 2022"]
[White "Alekseenko, Kirill"]
[Black "Khumalo, Keith"]
[WhiteFideId "4135539"]
[BlackFideId "14319470"]
[WhiteElo "2682"]
[BlackElo "2057"]
[Result "1-0"]
[Round "03"]
[TimeControl "180+1"]
[Date "2022.05.10"]
[WhiteClock "0:00:15"]
[BlackClock "0:00:23"]

1. e4 {[%clk 0:03:00]}  c5 {[%clk 0:02:59]} 2. Nf3 {[%clk 0:03:01]}  d6 {[%clk 0:02:59]} 3. d4 {[%clk 0:03:01]}  cxd4 {[%clk 0:03:00]} 4. Nxd4 {[%clk 0:03:02]}  Nf6 {[%clk 0:03:01]} 5. Nc3 {[%clk 0:03:03]}  g6 {[%clk 0:03:02]} 6. Nb3 {[%clk 0:03:01]}  Bg7 {[%clk 0:03:02]} 7. Be2 {[%clk 0:03:01]}  O-O {[%clk 0:03:02]} 8. g4 {[%clk 0:02:58]}  Be6 {[%clk 0:02:58]} 9. g5 {[%clk 0:02:48]}  Nfd7 {[%clk 0:02:57]} 10. h4 {[%clk 0:02:45]}  a6 {[%clk 0:02:54]} 11. h5 {[%clk 0:02:43]}  Qc7 {[%clk 0:02:55]} 12. Nd4 {[%clk 0:02:38]}  Nc6 {[%clk 0:02:50]} 13. Be3 {[%clk 0:02:29]}  Nxd4 {[%clk 0:02:29]} 14. Bxd4 {[%clk 0:02:30]}  Bxd4 {[%clk 0:02:30]} 15. Qxd4 {[%clk 0:02:29]}  Qc5 {[%clk 0:02:31]} 16. Qxc5 {[%clk 0:02:29]}  Nxc5 {[%clk 0:02:31]} 17. O-O-O {[%clk 0:02:22]}  b5 {[%clk 0:02:31]} 18. a3 {[%clk 0:02:22]}  Rac8 {[%clk 0:02:30]} 19. f4 {[%clk 0:02:21]}  Rc7 {[%clk 0:02:11]} 20. Rhf1 {[%clk 0:02:10]}  Nd7 {[%clk 0:01:53]} 21. Rd4 {[%clk 0:01:53]}  Nb6 {[%clk 0:01:44]} 22. f5 {[%clk 0:01:53]}  Bc4 {[%clk 0:01:44]} 23. f6 {[%clk 0:01:47]}  Bxe2 {[%clk 0:01:33]} 24. Nxe2 {[%clk 0:01:47]}  exf6 {[%clk 0:01:33]} 25. gxf6 {[%clk 0:01:48]}  Rfc8 {[%clk 0:01:22]} 26. c3 {[%clk 0:01:46]}  Nc4 {[%clk 0:01:19]} 27. Nf4 {[%clk 0:01:42]}  Re8 {[%clk 0:01:14]} 28. Nd5 {[%clk 0:01:40]}  Rb7 {[%clk 0:01:12]} 29. Ne7+ {[%clk 0:01:26]}  Kf8 {[%clk 0:01:07]} 30. b3 {[%clk 0:01:23]}  Ne3 {[%clk 0:00:56]} 31. Rf3 {[%clk 0:01:19]}  Ng4 {[%clk 0:00:56]} 32. hxg6 {[%clk 0:00:55]}  fxg6 {[%clk 0:00:57]} 33. Rxd6 {[%clk 0:00:52]}  a5 {[%clk 0:00:50]} 34. Rd5 {[%clk 0:00:41]}  Kf7 {[%clk 0:00:48]} 35. e5 {[%clk 0:00:40]}  a4 {[%clk 0:00:45]} 36. b4 {[%clk 0:00:39]}  Rc7 {[%clk 0:00:44]} 37. Rxb5 {[%clk 0:00:37]}  h5 {[%clk 0:00:39]} 38. Kc2 {[%clk 0:00:34]}  h4 {[%clk 0:00:35]} 39. Rf4 {[%clk 0:00:31]}  Ne3+ {[%clk 0:00:30]} 40. Kd3 {[%clk 0:00:31]}  g5 {[%clk 0:00:31]} 41. e6+ {[%clk 0:00:30]}  Kxe6 {[%clk 0:00:28]} 42. Rxg5 {[%clk 0:00:31]}  Nd1 {[%clk 0:00:23]} 43. Nd5 {[%clk 0:00:26]}  Rd8 {[%clk 0:00:21]} 44. c4 {[%clk 0:00:23]}  Nb2+ {[%clk 0:00:20]} 45. Kc3 {[%clk 0:00:21]}  Rxc4+ {[%clk 0:00:16]} 46. Rxc4 {[%clk 0:00:21]}  Nxc4 {[%clk 0:00:17]} 47. Kxc4 {[%clk 0:00:20]}  Rc8+ {[%clk 0:00:17]} 48. Kd4 {[%clk 0:00:20]}  h3 {[%clk 0:00:18]} 49. Re5+ {[%clk 0:00:21]}  Kf7 {[%clk 0:00:18]} 50. Rh5 {[%clk 0:00:19]}  Rc1 {[%clk 0:00:19]} 51. Rxh3 {[%clk 0:00:18]}  Rd1+ {[%clk 0:00:19]} 52. Ke5 {[%clk 0:00:19]}  Ra1 {[%clk 0:00:20]} 53. Rh7+ {[%clk 0:00:18]}  Kg6 {[%clk 0:00:21]} 54. Rg7+ {[%clk 0:00:19]}  Kh6 {[%clk 0:00:21]} 55. Rg3 {[%clk 0:00:17]}  Re1+ {[%clk 0:00:22]} 56. Kd6 {[%clk 0:00:17]}  Ra1 {[%clk 0:00:22]} 57. f7 {[%clk 0:00:17]}  Rf1 {[%clk 0:00:23]} 58. Ke6 {[%clk 0:00:16]}  Kh7 {[%clk 0:00:23]} 59. Nf6+ {[%clk 0:00:15]} 1-0


[Site "https://www.chess.com"]

[Event "Titled Tuesday Blitz May 10 Late 2022"]
[White "Alfaro, William"]
[Black "Kruckenhauser, Arthur"]
[WhiteFideId "6100457"]
[BlackFideId "1642812"]
[WhiteElo "2096"]
[BlackElo "2243"]
[Result "0-1"]
[Round "03"]
[TimeControl "180+1"]
[Date "2022.05.11"]
[WhiteClock "0:01:10"]
[BlackClock "0:01:13"]

1. e4 {[%clk 0:03:00]}  e5 {[%clk 0:02:56]} 2. Nf3 {[%clk 0:02:59]}  Nc6 {[%clk 0:02:55]} 3. Bb5 {[%clk 0:02:58]}  a6 {[%clk 0:02:53]} 4. Ba4 {[%clk 0:02:57]}  Nf6 {[%clk 0:02:53]} 5. O-O {[%clk 0:02:56]}  Nxe4 {[%clk 0:02:53]} 6. Re1 {[%clk 0:02:56]}  Nc5 {[%clk 0:02:50]} 7. Nxe5 {[%clk 0:02:55]}  Nxe5 {[%clk 0:02:47]} 8. Rxe5+ {[%clk 0:02:55]}  Be7 {[%clk 0:02:47]} 9. Bb3 {[%clk 0:02:55]}  Nxb3 {[%clk 0:02:47]} 10. axb3 {[%clk 0:02:56]}  O-O {[%clk 0:02:47]} 11. d4 {[%clk 0:02:56]}  d5 {[%clk 0:02:44]} 12. Qf3 {[%clk 0:02:47]}  c6 {[%clk 0:02:43]} 13. Nc3 {[%clk 0:02:46]}  Bd6 {[%clk 0:02:42]} 14. Re1 {[%clk 0:02:45]}  Qh4 {[%clk 0:02:38]} 15. g3 {[%clk 0:02:44]}  Qxd4 {[%clk 0:02:36]} 16. Be3 {[%clk 0:02:42]}  Qg4 {[%clk 0:02:26]} 17. Qxg4 {[%clk 0:02:41]}  Bxg4 {[%clk 0:02:26]} 18. Kg2 {[%clk 0:02:42]}  Rfe8 {[%clk 0:02:25]} 19. Bb6 {[%clk 0:02:36]}  Bf5 {[%clk 0:02:23]} 20. Rec1 {[%clk 0:02:22]}  f6 {[%clk 0:02:20]} 21. Ra4 {[%clk 0:02:21]}  Kf7 {[%clk 0:02:19]} 22. h3 {[%clk 0:02:19]}  h5 {[%clk 0:02:19]} 23. Rd4 {[%clk 0:02:18]}  a5 {[%clk 0:02:13]} 24. Rd2 {[%clk 0:02:16]}  Ra6 {[%clk 0:02:12]} 25. Be3 {[%clk 0:02:15]}  b5 {[%clk 0:02:09]} 26. Ne2 {[%clk 0:02:11]}  Bd7 {[%clk 0:02:08]} 27. c4 {[%clk 0:02:10]}  bxc4 {[%clk 0:02:01]} 28. bxc4 {[%clk 0:02:10]}  Bb4 {[%clk 0:02:01]} 29. Rd4 {[%clk 0:01:59]}  c5 {[%clk 0:01:59]} 30. Rxd5 {[%clk 0:01:49]}  Bc6 {[%clk 0:01:59]} 31. Nf4 {[%clk 0:01:47]}  g5 {[%clk 0:01:55]} 32. Nxh5 {[%clk 0:01:47]}  Bxd5+ {[%clk 0:01:50]} 33. cxd5 {[%clk 0:01:48]}  Rd8 {[%clk 0:01:42]} 34. Rd1 {[%clk 0:01:45]}  Rad6 {[%clk 0:01:41]} 35. g4 {[%clk 0:01:45]}  Rxd5 {[%clk 0:01:41]} 36. Rc1 {[%clk 0:01:45]}  a4 {[%clk 0:01:38]} 37. Ng3 {[%clk 0:01:43]}  Bd2 {[%clk 0:01:33]} 38. Bxd2 {[%clk 0:01:42]}  Rxd2 {[%clk 0:01:32]} 39. Rxc5 {[%clk 0:01:40]}  Rxb2 {[%clk 0:01:32]} 40. Rc7+ {[%clk 0:01:40]}  Ke6 {[%clk 0:01:31]} 41. Ra7 {[%clk 0:01:40]}  Ra2 {[%clk 0:01:25]} 42. Ra6+ {[%clk 0:01:35]}  Ke5 {[%clk 0:01:25]} 43. Ra5+ {[%clk 0:01:35]}  Rd5 {[%clk 0:01:24]} 44. Ra8 {[%clk 0:01:33]}  Rdd2 {[%clk 0:01:24]} 45. Re8+ {[%clk 0:01:30]}  Kd5 {[%clk 0:01:25]} 46. Ne4 {[%clk 0:01:29]}  Rdc2 {[%clk 0:01:17]} 47. Nxf6+ {[%clk 0:01:29]}  Kc4 {[%clk 0:01:18]} 48. Ne4 {[%clk 0:01:26]}  a3 {[%clk 0:01:18]} 49. Ra8 {[%clk 0:01:23]}  Kd4 {[%clk 0:01:15]} 50. Ra4+ {[%clk 0:01:22]}  Rc4 {[%clk 0:01:14]} 51. Rxc4+ {[%clk 0:01:19]}  Kxc4 {[%clk 0:01:14]} 52. Nxg5 {[%clk 0:01:19]}  Rb2 {[%clk 0:01:13]} 53. h4 {[%clk 0:01:16]}  a2 {[%clk 0:01:14]} 54. h5 {[%clk 0:01:17]}  a1=Q {[%clk 0:01:15]} 55. h6 {[%clk 0:01:17]}  Rb1 {[%clk 0:01:14]} 56. Nf3 {[%clk 0:01:12]}  Qf6 {[%clk 0:01:13]} 57. g5 {[%clk 0:01:12]}  Qf5 {[%clk 0:01:12]} 58. Kg3 {[%clk 0:01:10]}  Rh1 {[%clk 0:01:13]} 0-1


[Site "https://www.chess.com"]

[Event "Titled Tuesday Blitz May 10 Late 2022"]
[White "Andreikin, Dmitry"]
[Black "Kadric, Denis"]
[WhiteFideId "4158814"]
[BlackFideId "14403803"]
[WhiteElo "2736"]
[BlackElo "2657"]
[Result "1-0"]
[Round "03"]
[TimeControl "180+1"]
[Date "2022.05.10"]
[WhiteClock "0:01:01"]
[BlackClock "0:00:19"]

1. d4 {[%clk 0:03:00]}  d6 {[%clk 0:03:00]} 2. Nf3 {[%clk 0:02:59]}  Nf6 {[%clk 0:03:00]} 3. c4 {[%clk 0:02:55]}  Nbd7 {[%clk 0:03:00]} 4. Nc3 {[%clk 0:02:55]}  e5 {[%clk 0:03:00]} 5. Bg5 {[%clk 0:02:53]}  h6 {[%clk 0:02:47]} 6. Bh4 {[%clk 0:02:52]}  Be7 {[%clk 0:02:36]} 7. e3 {[%clk 0:02:52]}  O-O {[%clk 0:02:35]} 8. Bd3 {[%clk 0:02:51]}  exd4 {[%clk 0:02:34]} 9. exd4 {[%clk 0:02:48]}  Re8 {[%clk 0:02:20]} 10. O-O {[%clk 0:02:42]}  Nh5 {[%clk 0:02:19]} 11. Bxe7 {[%clk 0:02:36]}  Qxe7 {[%clk 0:02:16]} 12. Re1 {[%clk 0:02:30]}  Qd8 {[%clk 0:02:15]} 13. Rxe8+ {[%clk 0:02:15]}  Qxe8 {[%clk 0:02:15]} 14. Qd2 {[%clk 0:02:15]}  Nf8 {[%clk 0:02:02]} 15. Re1 {[%clk 0:02:13]}  Qd8 {[%clk 0:02:02]} 16. Qe3 {[%clk 0:02:04]}  Nf6 {[%clk 0:01:47]} 17. h3 {[%clk 0:02:03]}  c6 {[%clk 0:01:39]} 18. d5 {[%clk 0:01:55]}  c5 {[%clk 0:01:38]} 19. Nd2 {[%clk 0:01:53]}  Ng6 {[%clk 0:01:12]} 20. Bxg6 {[%clk 0:01:40]}  fxg6 {[%clk 0:01:13]} 21. Qg3 {[%clk 0:01:25]}  Bf5 {[%clk 0:00:59]} 22. Nb5 {[%clk 0:01:25]}  Ne8 {[%clk 0:01:00]} 23. Ne4 {[%clk 0:01:19]}  Bxe4 {[%clk 0:00:56]} 24. Rxe4 {[%clk 0:01:19]}  a6 {[%clk 0:00:57]} 25. Nc3 {[%clk 0:01:19]}  g5 {[%clk 0:00:49]} 26. Re6 {[%clk 0:01:19]}  Qd7 {[%clk 0:00:43]} 27. Ne4 {[%clk 0:01:18]}  Rd8 {[%clk 0:00:44]} 28. h4 {[%clk 0:01:11]}  gxh4 {[%clk 0:00:44]} 29. Qxh4 {[%clk 0:01:09]}  Rc8 {[%clk 0:00:28]} 30. Qg4 {[%clk 0:01:07]}  Qa4 {[%clk 0:00:22]} 31. Re7 {[%clk 0:01:01]}  Ra8 {[%clk 0:00:19]} 1-0


[Site "https://www.chess.com"]

[Event "Titled Tuesday Blitz May 10 Late 2022"]
[White "Atanasov, Anthony"]
[Black "Mikhailov, Viacheslav"]
[WhiteFideId "2623897"]
[BlackFideId "4187369"]
[WhiteElo "1928"]
[BlackElo "2381"]
[Result "1-0"]
[Round "03"]
[TimeControl "180+1"]
[Date "2022.05.11"]
[WhiteClock "0:00:36"]
[BlackClock "0:01:58"]

1. d4 {[%clk 0:03:00]}  Nf6 {[%clk 0:02:59]} 2. Nf3 {[%clk 0:02:56]}  g6 {[%clk 0:03:00]} 3. Bf4 {[%clk 0:02:56]}  Bg7 {[%clk 0:03:00]} 4. e3 {[%clk 0:02:55]}  O-O {[%clk 0:03:00]} 5. Be2 {[%clk 0:02:55]}  d6 {[%clk 0:03:01]} 6. O-O {[%clk 0:02:56]}  c5 {[%clk 0:03:01]} 7. c3 {[%clk 0:02:56]}  Nc6 {[%clk 0:03:01]} 8. Nbd2 {[%clk 0:02:56]}  Bf5 {[%clk 0:03:02]} 9. Qb3 {[%clk 0:02:56]}  b6 {[%clk 0:03:01]} 10. Rfe1 {[%clk 0:02:52]}  Qc7 {[%clk 0:03:00]} 11. Bb5 {[%clk 0:02:48]}  Rfc8 {[%clk 0:02:57]} 12. e4 {[%clk 0:02:41]}  Bg4 {[%clk 0:02:57]} 13. h3 {[%clk 0:02:38]}  Bxf3 {[%clk 0:02:56]} 14. Nxf3 {[%clk 0:02:39]}  a6 {[%clk 0:02:57]} 15. Bc4 {[%clk 0:02:34]}  e6 {[%clk 0:02:56]} 16. Ng5 {[%clk 0:02:31]}  Na5 {[%clk 0:02:56]} 17. Nxe6 {[%clk 0:02:17]}  fxe6 {[%clk 0:02:56]} 18. Bxe6+ {[%clk 0:02:18]}  Kh8 {[%clk 0:02:56]} 19. Qd1 {[%clk 0:02:16]}  Re8 {[%clk 0:02:55]} 20. d5 {[%clk 0:02:10]}  Nc4 {[%clk 0:02:55]} 21. b3 {[%clk 0:02:06]}  Ne5 {[%clk 0:02:55]} 22. Bxe5 {[%clk 0:02:04]}  dxe5 {[%clk 0:02:56]} 23. c4 {[%clk 0:02:02]}  Rad8 {[%clk 0:02:51]} 24. Qf3 {[%clk 0:02:02]}  Rf8 {[%clk 0:02:51]} 25. Qe3 {[%clk 0:01:52]}  Ne8 {[%clk 0:02:50]} 26. Rad1 {[%clk 0:01:45]}  Nd6 {[%clk 0:02:50]} 27. Bg4 {[%clk 0:01:42]}  Qe7 {[%clk 0:02:49]} 28. f3 {[%clk 0:01:38]}  Rf4 {[%clk 0:02:45]} 29. a4 {[%clk 0:01:36]}  Rdf8 {[%clk 0:02:45]} 30. a5 {[%clk 0:01:35]}  h5 {[%clk 0:02:41]} 31. Be6 {[%clk 0:01:33]}  Qc7 {[%clk 0:02:29]} 32. axb6 {[%clk 0:01:17]}  Qxb6 {[%clk 0:02:30]} 33. Ra1 {[%clk 0:01:16]}  a5 {[%clk 0:02:21]} 34. Qc3 {[%clk 0:01:15]}  Rb8 {[%clk 0:02:14]} 35. Rxa5 {[%clk 0:01:09]}  Qxb3 {[%clk 0:02:10]} 36. Qxb3 {[%clk 0:01:07]}  Rxb3 {[%clk 0:02:11]} 37. Ra8+ {[%clk 0:01:07]}  Kh7 {[%clk 0:02:11]} 38. Rd8 {[%clk 0:00:59]}  Bf8 {[%clk 0:02:10]} 39. Rd7+ {[%clk 0:00:55]}  Kh6 {[%clk 0:02:10]} 40. Bg8 {[%clk 0:00:53]}  Nxc4 {[%clk 0:02:08]} 41. d6 {[%clk 0:00:44]}  Rc3 {[%clk 0:02:05]} 42. Rh7+ {[%clk 0:00:43]}  Kg5 {[%clk 0:02:03]} 43. d7 {[%clk 0:00:43]}  Rd3 {[%clk 0:01:59]} 44. Bd5 {[%clk 0:00:37]}  Rd2 {[%clk 0:01:59]} 45. d8=Q+ {[%clk 0:00:36]}  Rf6 {[%clk 0:01:58]} 46. h4+ {[%clk 0:00:36]} 1-0


[Site "https://www.chess.com"]

[Event "Titled Tuesday Blitz May 10 Late 2022"]
[White "Atanejhad, Sahebali"]
[Black "Bashirli, Nail"]
[WhiteFideId "12506664"]
[BlackFideId "13406809"]
[WhiteElo "1953"]
[BlackElo "2333"]
[Result "0-1"]
[Round "03"]
[TimeControl "180+1"]
[Date "2022.05.11"]
[WhiteClock "0:00:05"]
[BlackClock "0:00:15"]

1. d4 {[%clk 0:02:44]}  e6 {[%clk 0:02:55]} 2. Nf3 {[%clk 0:02:44]}  Nf6 {[%clk 0:02:54]} 3. c4 {[%clk 0:02:44]}  c5 {[%clk 0:02:53]} 4. d5 {[%clk 0:02:44]}  b5 {[%clk 0:02:54]} 5. Bg5 {[%clk 0:02:42]}  d6 {[%clk 0:02:52]} 6. e4 {[%clk 0:02:39]}  exd5 {[%clk 0:02:49]} 7. cxd5 {[%clk 0:02:36]}  b4 {[%clk 0:02:43]} 8. a3 {[%clk 0:02:35]}  Be7 {[%clk 0:02:41]} 9. Bxf6 {[%clk 0:02:26]}  Bxf6 {[%clk 0:02:40]} 10. Qc2 {[%clk 0:02:26]}  O-O {[%clk 0:02:36]} 11. Bd3 {[%clk 0:02:26]}  Nd7 {[%clk 0:02:35]} 12. O-O {[%clk 0:02:25]}  b3 {[%clk 0:02:35]} 13. Qe2 {[%clk 0:02:15]}  Re8 {[%clk 0:02:35]} 14. Nbd2 {[%clk 0:02:14]}  Rb8 {[%clk 0:02:31]} 15. Nc4 {[%clk 0:02:09]}  Nb6 {[%clk 0:02:29]} 16. Nfd2 {[%clk 0:02:08]}  Nxd5 {[%clk 0:02:28]} 17. g3 {[%clk 0:02:05]}  Ba6 {[%clk 0:02:26]} 18. Rfd1 {[%clk 0:01:59]}  Nc7 {[%clk 0:02:16]} 19. Qh5 {[%clk 0:01:50]}  g6 {[%clk 0:02:11]} 20. Qf3 {[%clk 0:01:49]}  Ne6 {[%clk 0:02:08]} 21. e5 {[%clk 0:01:38]}  dxe5 {[%clk 0:01:27]} 22. Ne4 {[%clk 0:01:37]}  Bg7 {[%clk 0:00:56]} 23. Ncd6 {[%clk 0:01:25]}  Re7 {[%clk 0:00:34]} 24. Bxa6 {[%clk 0:01:22]}  Nd4 {[%clk 0:00:34]} 25. Qd3 {[%clk 0:00:53]}  Rb6 {[%clk 0:00:30]} 26. Bc4 {[%clk 0:00:46]}  Rxd6 {[%clk 0:00:30]} 27. Nxd6 {[%clk 0:00:46]}  Qxd6 {[%clk 0:00:30]} 28. Bxb3 {[%clk 0:00:47]}  Rb7 {[%clk 0:00:22]} 29. Ba2 {[%clk 0:00:25]}  Qc6 {[%clk 0:00:22]} 30. Qc4 {[%clk 0:00:20]}  Bf6 {[%clk 0:00:19]} 31. Rxd4 {[%clk 0:00:19]}  exd4 {[%clk 0:00:17]} 32. Re1 {[%clk 0:00:20]}  Kg7 {[%clk 0:00:17]} 33. Rc1 {[%clk 0:00:17]}  Be7 {[%clk 0:00:16]} 34. Qxd4+ {[%clk 0:00:16]}  cxd4 {[%clk 0:00:15]} 35. Rxc6 {[%clk 0:00:17]}  Rxb2 {[%clk 0:00:16]} 36. Bc4 {[%clk 0:00:17]}  Bxa3 {[%clk 0:00:14]} 37. Rc7 {[%clk 0:00:17]}  Kf6 {[%clk 0:00:14]} 38. Rxf7+ {[%clk 0:00:16]}  Ke5 {[%clk 0:00:15]} 39. Rxa7 {[%clk 0:00:17]}  Bc5 {[%clk 0:00:14]} 40. Ra5 {[%clk 0:00:17]}  Kd6 {[%clk 0:00:14]} 41. Ra6+ {[%clk 0:00:17]}  Bb6 {[%clk 0:00:15]} 42. Kf1 {[%clk 0:00:16]}  g5 {[%clk 0:00:15]} 43. Bd3 {[%clk 0:00:16]}  h5 {[%clk 0:00:14]} 44. Ra8 {[%clk 0:00:15]}  Rb3 {[%clk 0:00:14]} 45. Ke2 {[%clk 0:00:15]}  Rb2+ {[%clk 0:00:14]} 46. Kf3 {[%clk 0:00:15]}  g4+ {[%clk 0:00:14]} 47. Ke4 {[%clk 0:00:14]}  Rxf2 {[%clk 0:00:14]} 48. Rh8 {[%clk 0:00:13]}  Rxh2 {[%clk 0:00:14]} 49. Rh6+ {[%clk 0:00:13]}  Kc5 {[%clk 0:00:14]} 50. Rh8 {[%clk 0:00:05]}  Rh1 {[%clk 0:00:15]} 51. Rc8+ {[%clk 0:00:04]}  Kd6 {[%clk 0:00:14]} 52. Rh8 {[%clk 0:00:03]}  Re1+ {[%clk 0:00:14]} 53. Kf4 {[%clk 0:00:04]}  Re3 {[%clk 0:00:12]} 54. Bb5 {[%clk 0:00:04]}  Bc7 {[%clk 0:00:12]} 55. Rh6+ {[%clk 0:00:02]}  Kc5+ {[%clk 0:00:12]} 56. Kf5 {[%clk 0:00:03]}  Kxb5 {[%clk 0:00:12]} 57. Rh7 {[%clk 0:00:03]}  Re5+ {[%clk 0:00:13]} 58. Kg6 {[%clk 0:00:03]}  Bd6 {[%clk 0:00:13]} 59. Rxh5 {[%clk 0:00:02]}  Rxh5 {[%clk 0:00:13]} 60. Kxh5 {[%clk 0:00:03]}  d3 {[%clk 0:00:14]} 61. Kxg4 {[%clk 0:00:04]}  d2 {[%clk 0:00:15]} 62. Kf3 {[%clk 0:00:05]}  d1=Q+ {[%clk 0:00:15]} 0-1


[Site "https://www.chess.com"]